fUSD/lending_fUSD_20250809
["ID","MTS","AMOUNT","RATE_DAILY","PERIOD"]
[378191665,1754777441991,-6862.89385856,0.000209,2]
[378191667,1754777442000,-11686.98809429,0.000209,2]
[378191669,1754777442010,-162.45249459,0.000209,2]
[378191671,1754777442019,-25794.3183,0.000209,3]
[378191673,1754777442030,-223.55205008,0.000209,3]
[378191675,1754777442039,-211.66152043,0.000209,3]
[378191677,1754777442049,-625.0,0.000209,2]
[378191679,1754777442058,-1000.0,0.00020936,2]
[378191681,1754777442067,-506.1,0.0002095,2]
[378191683,1754777442077,-434.50260251,0.00020973,2]
[378191685,1754777442086,-500.0,0.00020973,2]
[378191687,1754777442096,-500.0,0.00020973,2]
[378191689,1754777442107,-200.59887983,0.00020973,2]
[378191691,1754777442116,-500.0,0.00020973,2]
[378191693,1754777442125,-150.0,0.0002098,2]
[378191695,1754777442135,-150.0,0.0002098,2]
[378191697,1754777442147,-150.0,0.0002098,2]
[378191699,1754777442156,-150.0,0.0002098,2]
[378191701,1754777442166,-150.0,0.0002098,2]
[378191703,1754777442175,-150.0,0.0002098,2]
[378191705,1754777442184,-150.0,0.00020989,2]
[378191707,1754777442193,-154.0,0.00020989,2]
[378191709,1754777442202,-151.0,0.00020989,2]
[378191711,1754777442212,-201.882,0.00020989,2]
[378191713,1754777442222,-956.0,0.00020989,2]
[378191715,1754777442232,-1250.0,0.00020989,2]
[378191717,1754777442241,-959.0,0.00020989,2]
[378191719,1754777442251,-571.304,0.00020989,2]
[378191721,1754777442260,-2026.0,0.00020989,2]
[378191723,1754777442270,-748.86659839,0.00020989,2]
[378191725,1754777442281,-151.0,0.00020995,2]
[378191727,1754777442290,-2667.588113,0.00020995,2]
[378191729,1754777442299,-2667.588113,0.00020995,2]
[378191731,1754777442310,-210.4377077,0.00020995,2]
[378191733,1754777442319,-36052.0773588,0.00020995,2]
[378191735,1754777442330,-1954.6477282,0.00020995,2]
[378191737,1754777442339,-5742.4271185,0.00020995,2]
[378191739,1754777442350,-1000.0,0.00020999,2]
[378191741,1754777442359,-1000.0,0.00020999,2]
[378191743,1754777442369,-1000.0,0.00020999,2]
[378191745,1754777442378,-1000.0,0.00020999,2]
[378191747,1754777442387,-1000.0,0.00020999,2]
[378191749,1754777442397,-1000.0,0.00020999,2]
[378191751,1754777442406,-527950.78424484,0.00021,2]
[378191753,1754777442414,-1788.74626798,0.00021,2]
[378191755,1754777442424,-8796.01558116,0.00021,2]
[378191758,1754777442436,-3016.82881349,0.00021,2]
[378191762,1754777442466,-471.41232463,0.00021,2]
[378191859,1754777443459,-888.0,0.00020466,3]
[378191861,1754777443468,-167.67173525,0.00021,2]
[378191863,1754777443480,-397.01624024,0.00021,2]
[378191880,1754777443627,-1008.36,0.00021,2]
[378191901,1754777443814,-888.0,0.00020966,3]
[378191903,1754777443823,-62.13404654,0.00021,2]
[378191905,1754777443834,-1177.50064858,0.00021,2]
[378191909,1754777443861,-1856.69731399,0.00021,2]
[378192138,1754777446100,-1740.76621956,0.00021,2]
[378192140,1754777446112,-356.48784019,0.00021,2]
[378192143,1754777446123,-43970.35,0.00021,2]
[378192159,1754777446274,-1084.4,0.00021,2]
[378195103,1754777477165,512.0,0.000182,2]
[378196073,1754777487132,353.84321,0.0002,10]
[378197004,1754777602782,300.0,0.0001778,2]
[378197042,1754777738681,150.0,0.0002,10]
[378197060,1754777814533,150.0,0.000173,2]
[378197066,1754777848969,236.46,0.00013699,2]
[378197115,1754778341931,150.0,0.000173,2]
[378197120,1754778421317,160.36,0.000178,3]
[378197128,1754778515617,16548.64046737,0.000151,2]
[378197129,1754778515647,44565.81849848,0.000151,2]
[378197159,1754778619283,55752.5719565,0.00018,3]
[378197160,1754778619307,121503.22960087,0.00018,3]
[378197208,1754778632337,-300.0,0.0001824,2]
[378197209,1754778632346,-151.0,0.00018297,2]
[378197210,1754778632355,-151.0,0.00018315,2]
[378197211,1754778632364,-151.0,0.00018324,2]
[378197212,1754778632375,-150.0,0.0001848,2]
[378197213,1754778632384,-300.0,0.0001871,2]
[378197214,1754778632393,-154.86,0.00018763,2]
[378197215,1754778632403,-154.86,0.0001879,2]
[378197216,1754778632412,-154.86,0.00018817,2]
[378197217,1754778632421,-154.86,0.00018844,2]
[378197218,1754778632430,-154.86,0.00018871,2]
[378197219,1754778632439,-154.86,0.00018897,2]
[378197220,1754778632449,-154.86,0.00018924,2]
[378197221,1754778632458,-154.86,0.00018951,2]
[378197222,1754778632468,-1200.0,0.00018999,2]
[378197223,1754778632478,-300.0,0.00018999,2]
[378197224,1754778632488,-300.0,0.00018999,2]
[378197225,1754778632497,-169.467,0.00019,2]
[378197226,1754778632507,-4926.72190258,0.00019,2]
[378197227,1754778632523,-501.0,0.00019,2]
[378197228,1754778632542,-261.40199664,0.00019,2]
[378197231,1754778632568,-39474.08946386,0.00019,2]
[378197234,1754778632583,-592.62998414,0.00019,2]
[378197246,1754778637976,-1241.47444574,0.00019,2]
[378197249,1754778638061,-1211.20020554,0.00019,2]
[378197423,1754778640084,-2646.40394606,0.00019,2]
[378197426,1754778640097,-295.46504838,0.00019,2]
[378197429,1754778640120,-729.16540072,0.00019,2]
[378197437,1754778640198,-49706.87145125,0.00019,2]
[378197439,1754778640207,-333.99016415,0.00019,2]
[378197441,1754778640216,-300.0,0.0001917,2]
[378197443,1754778640226,-873.43,0.00019178,2]
[378197445,1754778640237,-516.0,0.00019181,2]
[378197448,1754778640246,-8042.09,0.0001946,2]
[378197449,1754778640255,-160.4,0.00019466,2]
[378197451,1754778640265,-479.56,0.00019489,2]
[378197453,1754778640274,-768.77,0.00019497,2]
[378197455,1754778640283,-4663.55798043,0.000195,2]
[378197458,1754778640293,-170.0,0.00019507,7]
[378197460,1754778640303,-1000.0,0.00019554,2]
[378197462,1754778640312,-225.39,0.00019588,2]
[378197464,1754778640322,-600.0,0.00019617,2]
[378197465,1754778640331,-600.0,0.00019617,2]
[378197468,1754778640340,-570.61,0.00019617,2]
[378197470,1754778640349,-300.0,0.0001963,2]
[378197472,1754778640358,-210.49,0.00019656,2]
[378197473,1754778640367,-150.0,0.0001967,2]
[378197476,1754778640378,-388.63,0.00019748,2]
[378197478,1754778640387,-154.97,0.00019835,2]
[378197480,1754778640396,-500.0,0.00019863,2]
[378197482,1754778640406,-302.85,0.00019915,2]
[378197484,1754778640415,-302.68,0.00019915,2]
[378197486,1754778640425,-239.84119403,0.00019949,2]
[378197488,1754778640435,-2781.98716934,0.00019949,2]
[378197490,1754778640445,-154.97,0.00020033,2]
[378197492,1754778640454,-600.0,0.00020052,2]
[378197494,1754778640464,-160.0,0.00020052,2]
[378197496,1754778640473,-359.76179104,0.00020052,2]
[378197498,1754778640483,-500.0,0.00020064,4]
[378197500,1754778640492,-500.0,0.00020064,2]
[378197502,1754778640502,-300.0,0.00020064,2]
[378197504,1754778640514,-1004.18,0.00020064,2]
[378197506,1754778640526,-300.0,0.000201,2]
[378197508,1754778640536,-859.2126534,0.00020135,2]
[378197510,1754778640546,-150.99,0.00020145,2]
[378197512,1754778640555,-8673.2,0.00020145,2]
[378197514,1754778640565,-150.99,0.00020145,2]
[378197516,1754778640575,-9999.99,0.00020145,2]
[378197518,1754778640584,-299.99,0.00020145,7]
[378197520,1754778640594,-6060.47,0.00020145,2]
[378197522,1754778640604,-150.0,0.00020164,2]
[378197524,1754778640613,-236.46,0.00020187,2]
[378197526,1754778640623,-278.16633576,0.00020255,2]
[378197528,1754778640636,-326.24446787,0.00020347,2]
[378197530,1754778640645,-303.82,0.0002042,2]
[378197532,1754778640654,-300.14,0.0002042,2]
[378197534,1754778640663,-374.32259998,0.00020439,2]
[378197536,1754778640673,-422.40073208,0.00020531,2]
[378197538,1754778640683,-300.0,0.0002056,2]
[378197540,1754778640693,-225.39,0.00020567,2]
[378197542,1754778640702,-600.0,0.000206,2]
[378197544,1754778640712,-470.47886419,0.00020622,2]
[378197546,1754778640721,-500.0,0.0002063,2]
[378197548,1754778640731,-873.43,0.00020639,2]
[378197550,1754778640740,-1577.03,0.000207,2]
[378197552,1754778640749,-420.0,0.00020709,2]
[378197554,1754778640759,-518.5569963,0.00020714,2]
[378197556,1754778640768,-495.37013,0.0002079,2]
[378197558,1754778640778,-300.0,0.00020795,2]
[378197560,1754778640787,-698.0609,0.000208,2]
[378197562,1754778640798,-806.84059368,0.00020803,2]
[378197564,1754778640807,-566.63512841,0.00020806,2]
[378197566,1754778640816,-150.0,0.00020809,2]
[378197568,1754778640826,-1000.0,0.00020825,2]
[378197570,1754778640835,-159.471,0.00020833,2]
[378197572,1754778640845,-2176.075,0.00020833,2]
[378197574,1754778640854,-150.0,0.0002085,2]
[378197576,1754778640863,-167.26357913,0.00020884,2]
[378197578,1754778640873,-305.43,0.00020885,2]
[378197580,1754778640884,-246.32762415,0.00020895,2]
[378197582,1754778640894,-1328.19390499,0.00020895,2]
[378197584,1754778640903,-8040.2651,0.00020895,2]
[378197586,1754778640913,-10679.361,0.00020895,2]
[378197588,1754778640923,-2500.0,0.00020895,2]
[378197590,1754778640932,-1328.19390491,0.00020896,2]
[378197592,1754778640941,-246.32762415,0.00020896,2]
[378197594,1754778640951,-1328.19390491,0.00020896,2]
[378197596,1754778640960,-246.32762415,0.00020896,2]
[378197598,1754778640969,-1328.19390491,0.00020897,2]
[378197600,1754778640979,-246.32762415,0.00020897,2]
[378197602,1754778640989,-1328.19390491,0.00020897,2]
[378197604,1754778640999,-1328.19390491,0.00020898,2]
[378197606,1754778641009,-246.32762415,0.00020898,2]
[378197608,1754778641018,-614.71326051,0.00020898,2]
[378197610,1754778641028,-1328.19390491,0.00020898,2]
[378197612,1754778641037,-246.32762415,0.00020899,2]
[378197614,1754778641051,-1328.19390491,0.00020899,2]
[378197616,1754778641062,-1055.57450687,0.00020899,2]
[378197618,1754778641071,-228.10053458,0.00020899,2]
[378197620,1754778641081,-246.32762415,0.00020899,2]
[378197622,1754778641091,-1328.19390491,0.00020899,2]
[378197624,1754778641103,-5000.0,0.000209,2]
[378197627,1754778641112,-25794.3183,0.000209,3]
[378197629,1754778641121,-159.9285495,0.000209,2]
[378197631,1754778641133,-254.3253,0.000209,2]
[378197633,1754778641142,-211.66152043,0.000209,3]
[378197635,1754778641151,-457.70825493,0.000209,3]
[378197637,1754778641161,-246.32762415,0.000209,2]
[378197639,1754778641170,-1328.19390491,0.000209,2]
[378197641,1754778641179,-223.55205008,0.000209,3]
[378197643,1754778641189,-1055.57450687,0.000209,2]
[378197645,1754778641200,-193.15940632,0.00020914,2]
[378197647,1754778641209,-160.4,0.00020926,2]
[378197649,1754778641219,-500.0,0.00020973,2]
[378197651,1754778641228,-434.50260251,0.00020973,2]
[378197653,1754778641237,-500.0,0.00020973,2]
[378197655,1754778641247,-500.0,0.00020973,2]
[378197657,1754778641256,-200.59887983,0.00020973,2]
[378197659,1754778641265,-150.0,0.0002098,2]
[378197661,1754778641275,-150.0,0.0002098,2]
[378197663,1754778641284,-150.0,0.0002098,2]
[378197665,1754778641293,-150.0,0.0002098,2]
[378197667,1754778641303,-150.0,0.0002098,2]
[378197668,1754778641313,-150.0,0.0002098,2]
[378197670,1754778641322,-10000.0,0.00020988,2]
[378197672,1754778641332,-662.79139262,0.00020989,2]
[378197674,1754778641343,-2026.0,0.0002099,2]
[378197676,1754778641353,-571.304,0.0002099,2]
[378197678,1754778641363,-959.0,0.0002099,2]
[378197680,1754778641373,-598.0,0.0002099,2]
[378197682,1754778641389,-991.141,0.0002099,2]
[378197684,1754778641399,-1171.0,0.0002099,2]
[378197686,1754778641410,-893.0,0.0002099,2]
[378197689,1754778641420,-201.882,0.0002099,2]
[378197691,1754778641430,-6079.0,0.0002099,2]
[378197692,1754778641439,-4143.0,0.0002099,2]
[378197694,1754778641449,-956.0,0.0002099,2]
[378197697,1754778641459,-891.0268904,0.00020992,2]
[378197699,1754778641468,-51062.8160933,0.00020995,2]
[378197701,1754778641478,-1414.8196753,0.00020995,2]
[378197703,1754778641487,-1000.0,0.00020999,2]
[378197705,1754778641497,-1000.0,0.00020999,2]
[378197706,1754778641507,-1000.0,0.00020999,2]
[378197708,1754778641520,-1000.0,0.00020999,2]
[378197710,1754778641529,-1000.0,0.00020999,2]
[378197712,1754778641538,-150.0,0.00020999,2]
[378197714,1754778641547,-506.1,0.00020999,2]
[378197716,1754778641556,-448525.50285035,0.00021,2]
[378197719,1754778641570,-4319.36533292,0.00021,2]
[378197721,1754778641581,-2298.82262236,0.00021,2]
[378197735,1754778641710,-12936.30000001,0.00021,2]
[378197885,1754778643273,-295.99920458,0.00019681,3]
[378197896,1754778643360,-592.00079542,0.00019681,3]
[378197898,1754778643369,-62234.69595836,0.00021,2]
[378197900,1754778643378,-1788.74626798,0.00021,2]
[378197902,1754778643389,-138838.51043873,0.00021,2]
[378198212,1754778646432,-888.0,0.00020181,3]
[378198214,1754778646442,-162.45249459,0.000209,2]
[378198215,1754778646451,-8007.54750541,0.00021,2]
[378198218,1754778646462,-580.61,0.00021,2]
[378198224,1754778646516,-86403.99999984,0.00021,2]
[378198227,1754778646532,-2778.99858109,0.00021,2]
[378198229,1754778646543,-193844.98720416,0.00021,2]
[378198231,1754778646556,-75115.09663062,0.00021,2]
[378198850,1754779059247,228.96,0.00013699,2]
[378198859,1754779488103,5190.0,0.0002,10]
[378198860,1754779528214,176.22,0.00016712,2]
[378198862,1754779625127,204.0,0.00018006,2]
[378198863,1754779635342,151.0,0.00018006,2]
[378198864,1754779635812,151.0,0.00018006,2]
[378198865,1754779635961,151.0,0.00018006,2]
[378198871,1754779725819,516.0,0.00017222,2]
[378198872,1754779726963,-188.0,0.00018006,2]
[378198873,1754779726986,-8.7862309,0.00018006,2]
[378198874,1754779729913,-173.02440815,0.00018006,2]
[378198875,1754779729936,-6.5506664,0.00018461,2]
[378198876,1754779732539,-186.96692464,0.00018461,2]
[378198877,1754779735968,-106.48240896,0.00018461,2]
[378198878,1754779735991,-153.0,0.00018462,2]
[378198879,1754779736013,-41.82945621,0.00018462,2]
[378198882,1754779828227,400.0,0.000183,10]
[378198911,1754779832351,-153.0,0.00018335,2]
[378198913,1754779832360,-209.88065986,0.00018335,2]
[378198915,1754779832370,-171.09940896,0.00018362,2]
[378198917,1754779832379,-179.57507455,0.00018362,2]
[378198918,1754779832389,-300.0,0.00018461,2]
[378198919,1754779832398,-1200.0,0.00018461,2]
[378198920,1754779832407,-300.0,0.00018461,2]
[378198922,1754779832418,-1215.0,0.00018462,2]
[378198923,1754779832427,-1215.0,0.00018462,2]
[378198924,1754779832436,-1215.0,0.00018462,2]
[378198925,1754779832445,-1215.0,0.00018462,2]
[378198926,1754779832455,-756.01214769,0.00018462,2]
[378198927,1754779832463,-181.81063905,0.00018462,2]
[378198928,1754779832473,-150.0,0.00018888,2]
[378198929,1754779832482,-150.0,0.00018888,2]
[378198930,1754779832491,-150.00000001,0.00018888,2]
[378198931,1754779832502,-150.0,0.00018888,2]
[378198932,1754779832512,-150.0,0.00018888,2]
[378198933,1754779832522,-150.0,0.00018888,2]
[378198934,1754779832532,-150.0,0.00018888,2]
[378198935,1754779832542,-150.0,0.00018888,2]
[378198936,1754779832551,-150.0,0.00018888,2]
[378198937,1754779832560,-150.0,0.00018888,2]
[378198938,1754779832569,-189.19182249,0.00018888,2]
[378198939,1754779832579,-150.0,0.00018888,2]
[378198940,1754779832588,-150.0,0.00018888,2]
[378198941,1754779832597,-150.0,0.00018888,2]
[378198942,1754779832606,-150.0,0.00018888,2]
[378198943,1754779832615,-152.15,0.00018999,2]
[378198944,1754779832625,-305.99,0.00018999,2]
[378198945,1754779832634,-303.71,0.00018999,2]
[378198946,1754779832643,-300.42,0.00018999,2]
[378198947,1754779832653,-304.38,0.00018999,2]
[378198948,1754779832662,-304.06,0.00018999,2]
[378198949,1754779832672,-82.65789622,0.00018999,2]
[378198950,1754779832684,-220.37210378,0.00018999,2]
[378198951,1754779832694,-304.11,0.00018999,2]
[378198952,1754779832703,-301.49,0.00018999,2]
[378198953,1754779832713,-304.31,0.00018999,2]
[378198954,1754779832724,-304.14,0.00018999,2]
[378198955,1754779832736,-293.31789622,0.00018999,2]
[378198956,1754779832772,-7.08210378,0.00018999,2]
[378198957,1754779832781,-302.3,0.00018999,2]
[378198959,1754779832790,-304.61,0.00018999,2]
[378198961,1754779832800,-39.1917063,0.00018999,2]
[378198963,1754779832811,-266.2482937,0.00018999,2]
[378198965,1754779832820,-305.77,0.00018999,2]
[378198967,1754779832830,-134.97233824,0.00019,2]
[378198970,1754779832852,-242.86332776,0.00019,2]
[378198972,1754779832861,-1018.67,0.00019178,2]
[378198973,1754779832871,-516.0,0.00019259,4]
[378198974,1754779832880,-353.02,0.00019263,2]
[378198975,1754779832889,-266.15,0.00019272,2]
[378198977,1754779832899,-500.0,0.0001929,2]
[378198978,1754779832908,-500.0,0.0001929,2]
[378198979,1754779832919,-131.31290376,0.0001929,2]
[378198981,1754779832933,-251.61630757,0.0001929,2]
[378198982,1754779832942,-220.65109676,0.0001929,2]
[378198984,1754779833001,-279.34890324,0.0001929,2]
[378198985,1754779833013,-27.53206932,0.0001929,2]
[378198986,1754779833037,-472.46793068,0.0001929,2]
[378198987,1754779833046,-183.71375956,0.0001929,2]
[378198988,1754779833138,-303.03001749,0.0001929,2]
[378198989,1754779833186,-13.25622295,0.0001929,2]
[378198990,1754779833195,-500.0,0.0001929,2]
[378198991,1754779833205,-579.50370979,0.0001929,2]
[378198992,1754779833214,-170.0,0.00019291,7]
[378198993,1754779833224,-154.88,0.00019333,2]
[378198994,1754779833233,-154.88,0.00019357,2]
[378198995,1754779833243,-154.88,0.00019381,2]
[378198996,1754779833253,-154.88,0.00019406,2]
[378198997,1754779833264,-154.88,0.0001943,2]
[378198998,1754779833273,-154.88,0.00019454,2]
[378198999,1754779833283,-3177.37960305,0.00019456,2]
[378199000,1754779833314,-458.59936606,0.00019456,2]
[378199001,1754779833326,-4406.11103089,0.00019456,2]
[378199002,1754779833335,-154.88,0.00019478,2]
[378199003,1754779833345,-768.77,0.00019491,2]
[378199004,1754779833355,-154.88,0.00019502,2]
[378199005,1754779833365,-600.0,0.00019513,2]
[378199006,1754779833375,-600.0,0.00019513,2]
[378199007,1754779833384,-600.0,0.00019513,2]
[378199008,1754779833394,-432.53,0.00019513,2]
[378199009,1754779833403,-154.88,0.00019526,2]
[378199010,1754779833413,-150.0,0.00019558,2]
[378199011,1754779833422,-165.8,0.00019594,2]
[378199012,1754779833432,-8968.14,0.00019717,2]
[378199013,1754779833441,-749.69,0.00019717,2]
[378199014,1754779833451,-184.32,0.00019724,2]
[378199015,1754779833461,-188.18,0.00019745,2]
[378199016,1754779833471,-1000.0,0.00019789,2]
[378199017,1754779833481,-250.0,0.00019807,2]
[378199018,1754779833492,-250.0,0.00019807,2]
[378199019,1754779833501,-300.0,0.00019807,2]
[378199020,1754779833511,-500.0,0.00019949,2]
[378199021,1754779833520,-359.76179104,0.00019949,2]
[378199022,1754779833529,-4662.51281194,0.00019949,2]
[378199023,1754779833539,-500.0,0.00019949,2]
[378199024,1754779833548,-500.0,0.00019949,2]
[378199025,1754779833557,-160.0,0.00019949,2]
[378199026,1754779833566,-500.0,0.00019949,2]
[378199027,1754779833575,-600.0,0.00019949,2]
[378199028,1754779833585,-500.0,0.00019949,2]
[378199029,1754779833594,-500.0,0.00019949,2]
[378199030,1754779833603,-500.0,0.00019949,2]
[378199031,1754779833612,-500.0,0.00019949,2]
[378199032,1754779833623,-500.0,0.00019949,2]
[378199033,1754779833632,-500.0,0.00019949,2]
[378199034,1754779833641,-500.0,0.00019949,2]
[378199035,1754779833651,-500.0,0.00019949,2]
[378199036,1754779833661,-500.0,0.00019949,2]
[378199037,1754779833671,-500.0,0.00019949,2]
[378199038,1754779833680,-500.0,0.00019949,2]
[378199039,1754779833689,-500.0,0.00019949,2]
[378199040,1754779833699,-500.0,0.00019949,2]
[378199041,1754779833708,-500.0,0.00019949,2]
[378199042,1754779833718,-500.0,0.00019949,2]
[378199043,1754779833727,-500.0,0.00019949,2]
[378199044,1754779833736,-239.84119403,0.00019949,2]
[378199045,1754779833745,-500.0,0.00019949,2]
[378199046,1754779833755,-500.0,0.00019949,2]
[378199047,1754779833764,-500.0,0.00019949,2]
[378199048,1754779833774,-500.0,0.00019949,2]
[378199049,1754779833783,-500.0,0.00019949,2]
[378199050,1754779833792,-500.0,0.00019949,2]
[378199051,1754779833802,-500.0,0.00019949,2]
[378199052,1754779833811,-500.0,0.00019949,2]
[378199053,1754779833820,-151.0,0.00019949,2]
[378199054,1754779833830,-150.0,0.0002,2]
[378199055,1754779833840,-3720.33233268,0.00020004,2]
[378199056,1754779833850,-420.0,0.00020133,2]
[378199057,1754779833860,-2319.78194015,0.00020135,2]
[378199058,1754779833869,-228.96,0.00020187,2]
[378199059,1754779833878,-353.02,0.00020226,2]
[378199060,1754779833888,-1295.0,0.00020232,2]
[378199061,1754779833898,-600.0,0.000203,7]
[378199062,1754779833908,-300.0,0.00020307,2]
[378199063,1754779833919,-1004.18,0.00020308,2]
[378199064,1754779833931,-167.26357913,0.0002037,2]
[378199065,1754779833943,-1200.0,0.000204,7]
[378199066,1754779833953,-500.0,0.00020438,2]
[378199067,1754779833963,-600.0,0.00020497,2]
[378199068,1754779833973,-167.98,0.000205,2]
[378199069,1754779833984,-1800.0,0.000205,7]
[378199070,1754779833994,-165.8,0.00020573,2]
[378199071,1754779834003,-2500.0,0.000206,7]
[378199072,1754779834012,-1018.67,0.00020635,2]
[378199073,1754779834023,-3100.0,0.000207,7]
[378199074,1754779834032,-1737.59,0.000207,2]
[378199075,1754779834042,-150.0,0.00020735,2]
[378199076,1754779834051,-150.0,0.0002074,2]
[378199077,1754779834061,-806.84059368,0.00020745,2]
[378199078,1754779834070,-169.23744463,0.00020786,2]
[378199079,1754779834080,-2814.60222,0.0002079,2]
[378199080,1754779834090,-150.0,0.00020792,2]
[378199081,1754779834099,-20850.29833167,0.000208,2]
[378199082,1754779834109,-2500.0,0.000208,2]
[378199083,1754779834120,-4484.67258679,0.000208,2]
[378199084,1754779834130,-600.0,0.000208,7]
[378199085,1754779834141,-4484.67258678,0.00020811,2]
[378199086,1754779834151,-4484.67258678,0.00020822,2]
[378199087,1754779834161,-4484.67258678,0.00020833,2]
[378199088,1754779834172,-622.02682761,0.00020842,2]
[378199089,1754779834182,-159.471,0.00020844,2]
[378199090,1754779834193,-2176.075,0.00020844,2]
[378199091,1754779834204,-4484.67258678,0.00020844,2]
[378199092,1754779834214,-4484.67258678,0.00020856,2]
[378199093,1754779834225,-4484.67258678,0.00020867,2]
[378199094,1754779834235,-4484.67258678,0.00020878,2]
[378199095,1754779834245,-150.0,0.00020886,2]
[378199096,1754779834255,-929.16620383,0.00020889,2]
[378199116,1754779838931,-888.0,0.00019759,3]
[378199118,1754779838943,-78.05781234,0.0001998,2]
[378199120,1754779838955,-2152.70218766,0.0001998,2]
[378199122,1754779838964,-888.0,0.00020732,3]
[378199124,1754779838973,-3555.50638295,0.00020889,2]
[378199126,1754779838984,-14762.33142914,0.0002089,2]
[378199128,1754779838995,-2179.0031795,0.0002089,2]
[378199130,1754779839008,-2400.66326578,0.0002089,2]
[378199133,1754779839020,-5232.5,0.0002089,2]
[378199135,1754779839036,-2932.5,0.0002089,2]
[378199137,1754779839048,-544.12562558,0.0002089,2]
[378199140,1754779839059,-5.9571582,0.0002089,2]
[378199146,1754779839115,-187.20224812,0.0002089,2]
[378199148,1754779839124,-228.10053458,0.00020899,2]
[378199150,1754779839135,-1000.0,0.000209,2]
[378199152,1754779839144,-1966.0554051,0.000209,2]
[378199155,1754779839156,-8713.3055949,0.000209,2]
[378199157,1754779839166,-5000.0,0.000209,2]
[378199159,1754779839181,-336.1393,0.000209,2]
[378199161,1754779839191,-159.9285495,0.000209,2]
[378199163,1754779839200,-211.66152043,0.000209,3]
[378199165,1754779839210,-600.0,0.000209,7]
[378199167,1754779839220,-1470.05030286,0.000209,2]
[378199169,1754779839231,-567.4488651,0.000209,2]
[378199266,1754779840294,-888.0,0.00020259,3]
[378199268,1754779840304,-2447.17341882,0.000209,2]
[378199270,1754779840313,-457.70825493,0.000209,3]
[378199272,1754779840323,-6733.72147482,0.000209,2]
[378199274,1754779840334,-13360.14615686,0.000209,2]
[378199276,1754779840343,-164.19817071,0.000209,2]
[378199278,1754779840353,-223.55205008,0.000209,3]
[378199280,1754779840362,-169.23744463,0.000209,2]
[378199282,1754779840371,-1000.0,0.00020922,2]
[378199284,1754779840381,-8673.2,0.00020951,2]
[378199286,1754779840390,-983.32,0.00020951,2]
[378199288,1754779840399,-414.03,0.00020951,2]
[378199290,1754779840408,-1098.23908333,0.00020951,2]
[378199292,1754779840420,-4694.279999,0.00020951,2]
[378199294,1754779840431,-267.95091767,0.00020951,2]
[378199296,1754779840440,-51.43721241,0.00020951,7]
[378199299,1754779840451,-248.55278759,0.00020951,7]
[378199301,1754779840460,-3941.87212291,0.00020951,2]
[378199303,1754779840471,-351.19098,0.00020951,2]
[378199306,1754779840490,-3407.28096,0.00020951,2]
[378199308,1754779840501,-1413.45215516,0.00020951,2]
[378199320,1754779840610,-888.0,0.00020759,3]
[378199322,1754779840620,-886.19378193,0.00020951,2]
[378199324,1754779840629,-150.99,0.00020951,2]
[378199326,1754779840638,-150.99,0.00020951,2]
[378199328,1754779840647,-500.0,0.00020973,2]
[378199330,1754779840657,-164.6238641,0.00020973,2]
[378199332,1754779840666,-500.0,0.00020973,2]
[378199334,1754779840676,-500.0,0.00020973,2]
[378199336,1754779840685,-500.0,0.00020973,2]
[378199339,1754779840694,-500.0,0.00020973,2]
[378199341,1754779840703,-200.59887983,0.00020973,2]